[Event "Championnat du monde jeunes U12F"]
[Date "2024.11.20"]
[White "Busuioc, Amelie"]
[Black "Ribreau, Anna"]
[WhiteElo "1581"]
[BlackElo "1726"]
[Round "6.30"]
[Result "0-1"]
[TimeControl "5400+30"]

1. e4 {[%clk 1:30:59]} 1... d6 {[%clk 1:27:53]} 2. d4 {[%clk 1:31:23]} 2... Nf6
{[%clk 1:27:49]} 3. Nc3 {[%clk 1:31:35]} 3... c6 {[%clk 1:27:36]} 4. f4 {[%clk
1:31:52]} 4... Qa5 {[%clk 1:27:27]} 5. Bd3 {[%clk 1:31:56]} 5... e5 {[%clk
1:26:57]} 6. Nf3 {[%clk 1:32:03]} 6... exd4 {[%clk 1:25:56]} 7. Nxd4 {[%clk
1:32:10]} 7... Qb6 {[%clk 1:25:55]} 8. Be3 {[%clk 1:31:55]} 8... Qxb2 {[%clk
1:24:38]} 9. Bd2 {[%clk 1:31:39]} 9... Qb6 {[%clk 1:23:49]} 10. Be3 {[%clk
1:30:12]} 10... Ng4 {[%clk 1:21:34]} 11. Qf3 {[%clk 1:28:36]} 11... Nxe3 {[%clk
1:21:25]} 12. Qxe3 {[%clk 1:28:58]} 12... Qb2 {[%clk 1:20:10]} 13. O-O {[%clk
1:28:10]} 13... Qxc3 {[%clk 1:19:36]} 14. e5 {[%clk 1:28:06]} 14... d5 {[%clk
1:18:53]} 15. e6 {[%clk 1:28:08]} 15... Bc5 {[%clk 1:17:37]} 16. exf7+ {[%clk
1:27:58]} 16... Kxf7 {[%clk 1:17:56]} 17. Bg6+ {[%clk 1:28:22]} 17... hxg6
{[%clk 1:16:29]} 18. Qxc3 {[%clk 1:28:45]} 18... Bb6 {[%clk 1:15:23]} 19. Kh1
{[%clk 1:28:46]} 19... Bg4 {[%clk 1:13:21]} 20. f5 {[%clk 1:28:32]} 20... Bxd4
{[%clk 1:12:03]} 21. fxg6+ {[%clk 1:28:23]} 21... Kxg6 {[%clk 1:12:13]} 22. Qxd4
{[%clk 1:28:48]} 22... Bf5 {[%clk 1:10:58]} 23. Rae1 {[%clk 1:27:51]} 23... Nd7
{[%clk 1:09:27]} 24. Qf4 {[%clk 1:26:24]} 24... Raf8 {[%clk 1:09:11]} 25. Qd6+
{[%clk 1:24:01]} 25... Nf6 {[%clk 1:09:11]} 26. Re3 {[%clk 1:22:50]} 26... Bxc2
{[%clk 1:06:04]} 27. Rg3+ {[%clk 1:22:26]} 27... Kh7 {[%clk 1:05:45]} 28. Rh3+
{[%clk 1:22:13]} 28... Kg6 {[%clk 1:05:05]} 29. Qg3+ {[%clk 1:21:50]} 29... Kf7
{[%clk 1:05:01]} 30. Qc7+ {[%clk 1:22:06]} 30... Kg8 {[%clk 1:04:44]} 31. Rxh8+
{[%clk 1:22:01]} 31... Kxh8 {[%clk 1:05:02]} 32. Qxb7 {[%clk 1:22:24]} 32... d4
{[%clk 1:03:56]} 33. Rc1 {[%clk 1:21:59]} 33... Re8 {[%clk 1:03:26]} 34. Qxa7
{[%clk 1:21:29]} 34... d3 {[%clk 1:03:08]} 35. Qa5 {[%clk 1:18:56]} 35... Re2
{[%clk 1:01:42]} 36. Re1 {[%clk 1:18:41]} 36... d2 {[%clk 1:01:02]} 37. Rxe2
{[%clk 1:19:04]} 37... d1=Q+ {[%clk 1:01:22]} 38. Qe1 {[%clk 1:19:03]} 38...
Qxe1+ {[%clk 0:59:35]} 39. Rxe1 {[%clk 1:19:18]} 39... Ba4 {[%clk 0:59:47]} 40.
Rc1 {[%clk 1:19:06]} 40... Kg8 {[%clk 0:51:51]} 41. h4 {[%clk 1:19:15]} 41...
Kf7 {[%clk 0:52:02]} 42. Kh2 {[%clk 1:19:32]} 42... Ke6 {[%clk 0:51:59]} 43. Kh3
{[%clk 1:19:47]} 43... Kd5 {[%clk 0:50:50]} 44. g4 {[%clk 1:20:06]} 44... c5
{[%clk 0:50:59]} 45. g5 {[%clk 1:20:08]} 45... Nh5 {[%clk 0:51:13]} 46. Kg4
{[%clk 1:20:26]} 46... g6 {[%clk 0:51:35]} 47. Kf3 {[%clk 1:20:04]} 47... Kd4
{[%clk 0:51:39]} 48. Ke2 {[%clk 1:20:13]} 48... Bb5+ {[%clk 0:45:00]} 49. Kd2
{[%clk 1:20:09]} 49... Ng3 {[%clk 0:44:54]} 50. a3 {[%clk 1:19:28]} 50... Ne4+
{[%clk 0:44:45]} 51. Kc2 {[%clk 1:19:34]} 51... Ba4+ {[%clk 0:42:40]} 52. Kb2
{[%clk 1:19:35]} 52... Nf2 {[%clk 0:41:47]} 53. Rf1 {[%clk 1:19:25]} 53... Nd3+
{[%clk 0:33:21]} 54. Kb1 {[%clk 1:18:50]} 54... c4 {[%clk 0:25:26]} 55. Rg1
{[%clk 1:17:46]} 55... Nf4 {[%clk 0:23:31]} 56. Rg4 {[%clk 1:16:21]} 56... Ke5
{[%clk 0:16:44]} 57. Kb2 {[%clk 1:16:15]} 57... Kf5 {[%clk 0:12:13]} 58. Rg3
{[%clk 1:15:59]} 58... Nh5 {[%clk 0:12:19]} 59. Rg1 {[%clk 1:15:57]} 59... Ke4
{[%clk 0:12:04]} 60. Kc3 {[%clk 1:16:10]} 60... Bb5 {[%clk 0:10:39]} 61. a4
{[%clk 1:15:25]} 61... Bxa4 {[%clk 0:10:37]} 62. Kxc4 {[%clk 1:15:47]} 62... Kf4
{[%clk 0:10:42]} 63. Kd4 {[%clk 1:15:38]} 63... Bd7 {[%clk 0:10:09]} 64. Kd5
{[%clk 1:15:03]} 64... Bf5 {[%clk 0:10:26]} 65. Kd6 {[%clk 1:15:10]} 65... Ng3
{[%clk 0:10:11]} 66. Ke7 {[%clk 1:14:30]} 66... Kg4 {[%clk 0:08:17]} 67. Re1
{[%clk 1:14:01]} 67... Kxh4 {[%clk 0:08:23]} 68. Kf6 {[%clk 1:14:24]} 68... Nh5+
{[%clk 0:08:02]} 69. Ke5 {[%clk 1:14:20]} 69... Kxg5 {[%clk 0:08:19]} 70. Rg1+
{[%clk 1:14:29]} 70... Kh4 {[%clk 0:08:09]} 71. Kd4 {[%clk 1:14:28]} 71... Kh3
{[%clk 0:07:00]} 72. Ke3 {[%clk 1:14:34]} 72... Kh2 {[%clk 0:07:03]} 73. Kf2
{[%clk 1:14:42]} 73... Nf4 {[%clk 0:07:03]} 74. Rg5 {[%clk 1:14:08]} 74... Nh3+
{[%clk 0:07:21]} 0-1

[Variant "Standard"]
[Site "Europe Echecs"]

[Event "Championnat du monde jeunes U12F"]
[Date "2024.11.20"]
[White "Liang, Candice"]
[Black "Tsinjoviniavo, Aina Mahasambatra"]
[WhiteElo "1551"]
[BlackElo "1716"]
[Round "6.31"]
[Result "1-0"]
[TimeControl "5400+30"]

1. d4 {[%clk 1:30:57]} 1... Nf6 {[%clk 1:30:41]} 2. c4 {[%clk 1:30:59]} 2... e6
{[%clk 1:31:04]} 3. Nc3 {[%clk 1:31:24]} 3... Bb4 {[%clk 1:31:20]} 4. e3 {[%clk
1:31:47]} 4... O-O {[%clk 1:31:39]} 5. Nf3 {[%clk 1:31:57]} 5... c5 {[%clk
1:28:20]} 6. Bd2 {[%clk 1:31:07]} 6... cxd4 {[%clk 1:26:56]} 7. exd4 {[%clk
1:31:22]} 7... d5 {[%clk 1:26:38]} 8. a3 {[%clk 1:30:46]} 8... Ba5 {[%clk
1:26:28]} 9. b4 {[%clk 1:29:49]} 9... Bc7 {[%clk 1:26:52]} 10. c5 {[%clk
1:27:50]} 10... b6 {[%clk 1:24:09]} 11. cxb6 {[%clk 1:25:09]} 11... Bxb6 {[%clk
1:22:57]} 12. Bd3 {[%clk 1:24:29]} 12... Nc6 {[%clk 1:22:48]} 13. Be3 {[%clk
1:21:49]} 13... Re8 {[%clk 1:15:07]} 14. b5 {[%clk 1:19:05]} 14... Ne7 {[%clk
1:09:46]} 15. Ne5 {[%clk 1:16:20]} 15... Bb7 {[%clk 1:07:22]} 16. O-O {[%clk
1:14:02]} 16... Nd7 {[%clk 1:06:58]} 17. Bxh7+ {[%clk 1:03:37]} 17... Kf8 {[%clk
1:03:08]} 18. Qh5 {[%clk 1:00:26]} 18... Nxe5 {[%clk 1:03:19]} 19. dxe5 {[%clk
0:47:56]} 19... d4 {[%clk 0:59:55]} 20. Rad1 {[%clk 0:47:19]} 20... Nf5 {[%clk
0:55:06]} 21. Bxf5 {[%clk 0:46:55]} 21... exf5 {[%clk 0:53:58]} 22. Bg5 {[%clk
0:42:27]} 22... f6 {[%clk 0:53:45]} 23. exf6 {[%clk 0:42:29]} 23... gxf6 {[%clk
0:52:48]} 24. Qh8+ {[%clk 0:42:09]} 24... Kf7 {[%clk 0:52:03]} 25. Qh7+ {[%clk
0:42:18]} 25... Ke6 {[%clk 0:52:29]} 26. Rfe1+ {[%clk 0:41:28]} 26... Kd6 {[%clk
0:52:44]} 27. Qxb7 {[%clk 0:39:59]} 27... fxg5 {[%clk 0:52:00]} 28. Qc6# 1-0

[Variant "Standard"]
[Site "Europe Echecs"]

[Event "Championnat du monde jeunes U12F"]
[Date "2024.11.20"]
[White "Mrad, Anahid"]
[Black "Messali Anger, Ilyana"]
[WhiteElo "1558"]
[BlackElo "1687"]
[Round "6.32"]
[Result "0-1"]
[TimeControl "5400+30"]

1. e4 {[%clk 1:30:58]} 1... e5 {[%clk 1:30:51]} 2. Nf3 {[%clk 1:31:25]} 2... Nc6
{[%clk 1:31:08]} 3. Bc4 {[%clk 1:31:51]} 3... Nf6 {[%clk 1:31:17]} 4. Ng5 {[%clk
1:32:19]} 4... d5 {[%clk 1:31:19]} 5. exd5 {[%clk 1:32:44]} 5... Na5 {[%clk
1:31:24]} 6. Bb5+ {[%clk 1:33:08]} 6... c6 {[%clk 1:31:19]} 7. dxc6 {[%clk
1:33:33]} 7... bxc6 {[%clk 1:31:33]} 8. Bd3 {[%clk 1:33:33]} 8... Nd5 {[%clk
1:31:00]} 9. Nf3 {[%clk 1:33:05]} 9... Nf4 {[%clk 1:25:04]} 10. O-O {[%clk
1:30:11]} 10... Bd6 {[%clk 1:23:56]} 11. Re1 {[%clk 1:26:16]} 11... Qc7 {[%clk
1:21:24]} 12. b4 {[%clk 1:22:37]} 12... Nb7 {[%clk 1:13:14]} 13. Bc4 {[%clk
1:18:03]} 13... O-O {[%clk 1:12:28]} 14. d4 {[%clk 1:13:53]} 14... Bg4 {[%clk
1:06:45]} 15. Bb2 {[%clk 1:01:34]} 15... Rad8 {[%clk 0:50:47]} 16. Nbd2 {[%clk
0:55:06]} 16... Bxb4 {[%clk 0:43:17]} 17. c3 {[%clk 0:53:37]} 17... Bd6 {[%clk
0:42:37]} 18. dxe5 {[%clk 0:49:37]} 18... Bxe5 {[%clk 0:41:29]} 19. Qc2 {[%clk
0:48:37]} 19... Bd6 {[%clk 0:34:25]} 20. Ng5 {[%clk 0:45:56]} 20... Ng6 {[%clk
0:32:30]} 21. h3 {[%clk 0:44:57]} 21... Bf4 {[%clk 0:29:38]} 22. Nde4 {[%clk
0:41:40]} 22... Bf5 {[%clk 0:27:00]} 23. Nf3 {[%clk 0:29:42]} 23... Kh8 {[%clk
0:16:07]} 24. Nd4 {[%clk 0:26:58]} 24... Bxe4 {[%clk 0:12:56]} 25. Qxe4 {[%clk
0:25:51]} 25... Nd6 {[%clk 0:12:41]} 26. Qe2 {[%clk 0:23:31]} 26... Rfe8 {[%clk
0:09:23]} 27. Qf1 {[%clk 0:22:55]} 27... Nxc4 {[%clk 0:08:11]} 28. Qxc4 {[%clk
0:22:39]} 28... Ne5 {[%clk 0:07:59]} 29. Qf1 {[%clk 0:19:00]} 29... c5 {[%clk
0:06:30]} 30. Nb5 {[%clk 0:17:09]} 30... Qb6 {[%clk 0:06:21]} 31. Rab1 {[%clk
0:16:07]} 31... a6 {[%clk 0:04:33]} 32. Na3 {[%clk 0:15:26]} 32... Qg6 {[%clk
0:04:34]} 33. Kh1 {[%clk 0:13:09]} 33... Nd3 {[%clk 0:04:11]} 34. Rxe8+ {[%clk
0:10:19]} 34... Rxe8 {[%clk 0:04:31]} 35. c4 {[%clk 0:08:28]} 35... Bc7 {[%clk
0:03:21]} 36. Bc3 {[%clk 0:07:17]} 36... Qf5 {[%clk 0:02:54]} 37. Be1 {[%clk
0:04:10]} 37... Qf4 {[%clk 0:01:26]} 38. g3 {[%clk 0:03:38]} 38... Qf3+ {[%clk
0:01:36]} 39. Kg1 {[%clk 0:03:02]} 39... Ne5 {[%clk 0:01:03]} 40. Rb3 {[%clk
0:02:40]} 40... Qe4 {[%clk 0:01:02]} 41. f3 {[%clk 0:02:05]} 41... Qxe1 {[%clk
0:00:51]} 42. Qxe1 {[%clk 0:02:02]} 42... Nxf3+ {[%clk 0:01:10]} 43. Rxf3 {[%clk
0:02:26]} 43... Rxe1+ {[%clk 0:01:25]} 44. Kf2 {[%clk 0:02:49]} 44... Re7 {[%clk
0:01:35]} 45. Rf5 {[%clk 0:03:05]} 45... Bb6 {[%clk 0:01:35]} 46. Rd5 {[%clk
0:03:02]} 46... g6 {[%clk 0:01:42]} 47. Rd6 {[%clk 0:02:51]} 47... Re6 {[%clk
0:01:59]} 48. Rd7 {[%clk 0:02:56]} 48... Kg7 {[%clk 0:02:12]} 49. Nc2 {[%clk
0:02:09]} 49... Re4 {[%clk 0:02:07]} 50. Ne3 {[%clk 0:02:15]} 50... Ba5 {[%clk
0:01:22]} 51. Kf3 {[%clk 0:01:47]} 51... Re6 {[%clk 0:01:20]} 52. Rd5 {[%clk
0:01:33]} 52... Bb4 {[%clk 0:01:18]} 53. Nc2 {[%clk 0:01:23]} 53... Rc6 {[%clk
0:01:18]} 54. Nxb4 {[%clk 0:01:15]} 54... cxb4 {[%clk 0:01:40]} 55. c5 {[%clk
0:01:29]} 55... Kf6 {[%clk 0:01:24]} 56. Ke3 {[%clk 0:01:37]} 56... Ke6 {[%clk
0:01:13]} 57. Kd4 {[%clk 0:01:47]} 57... f6 {[%clk 0:01:12]} 58. g4 {[%clk
0:01:29]} 58... a5 {[%clk 0:01:09]} 59. h4 {[%clk 0:01:25]} 59... a4 {[%clk
0:01:17]} 60. Rd8 {[%clk 0:01:12]} 60... b3 {[%clk 0:01:16]} 61. Re8+ {[%clk
0:01:18]} 61... Kd7 {[%clk 0:01:11]} 62. Re2 {[%clk 0:01:37]} 62... bxa2 {[%clk
0:00:54]} 63. Rxa2 {[%clk 0:01:46]} 63... Ra6 {[%clk 0:01:05]} 64. Kc4 {[%clk
0:02:06]} 64... Kc6 {[%clk 0:01:16]} 65. Rd2 {[%clk 0:01:58]} 65... a3 {[%clk
0:01:20]} 66. Rd6+ {[%clk 0:02:05]} 66... Kb7 {[%clk 0:01:35]} 67. Rxa6 {[%clk
0:02:11]} 67... Kxa6 {[%clk 0:01:56]} 68. Kb3 {[%clk 0:02:38]} 68... Kb5 {[%clk
0:02:12]} 69. c6 {[%clk 0:02:51]} 69... Kxc6 {[%clk 0:02:27]} 70. Kxa3 {[%clk
0:03:17]} 70... Kd5 {[%clk 0:02:39]} 71. Kb3 {[%clk 0:03:37]} 71... Ke4 {[%clk
0:02:37]} 72. Kc2 {[%clk 0:03:50]} 72... Kf4 {[%clk 0:02:30]} 73. Kd2 {[%clk
0:04:14]} 73... Kxg4 {[%clk 0:02:48]} 74. Ke2 {[%clk 0:04:30]} 74... Kxh4 {[%clk
0:02:48]} 75. Kf3 {[%clk 0:04:49]} 75... g5 {[%clk 0:03:06]} 76. Kg2 {[%clk
0:05:12]} 76... g4 {[%clk 0:03:24]} 77. Kh2 {[%clk 0:05:22]} 77... g3+ {[%clk
0:03:37]} 78. Kg2 {[%clk 0:05:46]} 78... Kg4 {[%clk 0:03:59]} 79. Kg1 {[%clk
0:06:09]} 79... f5 {[%clk 0:04:09]} 80. Kg2 {[%clk 0:06:30]} 80... f4 {[%clk
0:04:30]} 81. Kg1 {[%clk 0:06:50]} 81... f3 {[%clk 0:04:37]} 82. Kh1 {[%clk
0:07:10]} 82... Kh3 {[%clk 0:04:33]} 83. Kg1 {[%clk 0:07:33]} 83... f2+ {[%clk
0:04:48]} 84. Kf1 {[%clk 0:07:54]} 84... g2+ {[%clk 0:05:05]} 0-1

[Variant "Standard"]
[Site "Europe Echecs"]

[Event "Championnat du monde jeunes U12F"]
[Date "2024.11.20"]
[White "Ivanova, Gabriela"]
[Black "Saharkar, Sharvari"]
[WhiteElo "1680"]
[BlackElo "1581"]
[Round "6.33"]
[Result "0-1"]
[TimeControl "5400+30"]

1. d4 {[%clk 1:30:57]} 1... Nf6 {[%clk 1:30:03]} 2. Nf3 {[%clk 1:30:32]} 2... e6
{[%clk 1:29:36]} 3. g3 {[%clk 1:29:35]} 3... d5 {[%clk 1:28:52]} 4. Bg2 {[%clk
1:28:30]} 4... Bd6 {[%clk 1:27:51]} 5. c4 {[%clk 1:26:47]} 5... O-O {[%clk
1:27:20]} 6. O-O {[%clk 1:26:28]} 6... h6 {[%clk 1:26:16]} 7. Re1 {[%clk
1:23:50]} 7... Nc6 {[%clk 1:22:30]} 8. cxd5 {[%clk 1:21:08]} 8... exd5 {[%clk
1:21:06]} 9. Nc3 {[%clk 1:19:37]} 9... b6 {[%clk 1:17:42]} 10. Bd2 {[%clk
1:15:02]} 10... Bb7 {[%clk 1:14:59]} 11. Rc1 {[%clk 1:14:25]} 11... Re8 {[%clk
1:12:35]} 12. Nb5 {[%clk 1:08:31]} 12... Be7 {[%clk 1:07:24]} 13. Ne5 {[%clk
1:08:19]} 13... a6 {[%clk 1:04:50]} 14. Nxc6 {[%clk 1:05:35]} 14... Bxc6 {[%clk
1:04:32]} 15. Rxc6 {[%clk 1:03:52]} 15... axb5 {[%clk 1:04:52]} 16. Bf4 {[%clk
1:03:44]} 16... Bb4 {[%clk 1:00:21]} 17. Bd2 {[%clk 1:00:13]} 17... Bxd2 {[%clk
0:57:01]} 18. Qxd2 {[%clk 1:00:31]} 18... Rxa2 {[%clk 0:56:38]} 19. Rec1 {[%clk
0:59:51]} 19... Re7 {[%clk 0:54:58]} 20. e3 {[%clk 0:58:59]} 20... Ra7 {[%clk
0:51:54]} 21. Qe2 {[%clk 0:56:53]} 21... Qe8 {[%clk 0:49:02]} 22. b4 {[%clk
0:53:44]} 22... Ne4 {[%clk 0:42:43]} 23. Qxb5 {[%clk 0:46:05]} 23... Re6 {[%clk
0:39:37]} 24. Qxd5 {[%clk 0:46:00]} 24... Rxc6 {[%clk 0:39:15]} 25. Qxc6 {[%clk
0:40:32]} 25... Qxc6 {[%clk 0:39:13]} 26. Rxc6 {[%clk 0:40:55]} 26... Ra1+
{[%clk 0:39:28]} 27. Bf1 {[%clk 0:41:04]} 27... Nd2 {[%clk 0:39:40]} 28. Rxc7
{[%clk 0:40:56]} 28... Rxf1+ {[%clk 0:39:50]} 29. Kg2 {[%clk 0:41:13]} 29... Rb1
{[%clk 0:40:05]} 30. d5 {[%clk 0:40:33]} 30... Ne4 {[%clk 0:38:04]} 31. Rc4
{[%clk 0:39:41]} 31... f5 {[%clk 0:37:01]} 32. d6 {[%clk 0:38:14]} 32... Nxd6
{[%clk 0:36:42]} 33. Rc6 {[%clk 0:38:35]} 33... Ne4 {[%clk 0:36:33]} 34. Rxb6
{[%clk 0:37:28]} 34... Kh7 {[%clk 0:36:03]} 35. Rb5 {[%clk 0:36:28]} 35... Kg6
{[%clk 0:34:09]} 36. Rb6+ {[%clk 0:36:35]} 36... Kh5 {[%clk 0:33:45]} 37. Rb5
{[%clk 0:36:26]} 37... g6 {[%clk 0:33:54]} 38. g4+ {[%clk 0:35:33]} 38... Kg5
{[%clk 0:33:10]} 39. gxf5 {[%clk 0:34:59]} 39... gxf5 {[%clk 0:32:51]} 40. f4+
{[%clk 0:32:21]} 40... Kg6 {[%clk 0:30:19]} 41. Rb6+ {[%clk 0:32:30]} 41... Kh5
{[%clk 0:30:09]} 42. Rb5 {[%clk 0:32:23]} 42... Rb2+ {[%clk 0:30:06]} 43. Kh3
{[%clk 0:30:14]} 43... Nf2+ {[%clk 0:28:40]} 44. Kg3 {[%clk 0:30:24]} 44... Ne4+
{[%clk 0:28:55]} 45. Kh3 {[%clk 0:30:35]} 45... Kg6 {[%clk 0:28:21]} 46. Rb6+
{[%clk 0:30:25]} 46... Nf6 {[%clk 0:27:06]} 47. Kg3 {[%clk 0:28:38]} 47... Kf7
{[%clk 0:26:40]} 48. Rb7+ {[%clk 0:28:44]} 48... Ke8 {[%clk 0:26:44]} 49. Rb6
{[%clk 0:28:46]} 49... Ng4 {[%clk 0:26:13]} 50. h3 {[%clk 0:28:31]} 50... Nxe3
{[%clk 0:26:22]} 51. Re6+ {[%clk 0:28:36]} 51... Kf7 {[%clk 0:26:19]} 52. Rxe3
{[%clk 0:28:50]} 52... Rxb4 {[%clk 0:26:31]} 53. Re5 {[%clk 0:27:43]} 53... Rb3+
{[%clk 0:26:35]} 54. Kh4 {[%clk 0:27:50]} 54... Kf6 {[%clk 0:25:40]} 55. Re8
{[%clk 0:27:11]} 55... Rf3 {[%clk 0:25:17]} 56. Rf8+ {[%clk 0:26:12]} 56... Kg6
{[%clk 0:25:24]} 57. Rg8+ {[%clk 0:24:57]} 57... Kh7 {[%clk 0:25:17]} 58. Rf8
{[%clk 0:23:35]} 58... Rxf4+ {[%clk 0:25:40]} 59. Kg3 {[%clk 0:23:53]} 59... Rf1
{[%clk 0:26:04]} 60. Kg2 {[%clk 0:23:31]} 60... Kg7 {[%clk 0:26:28]} 61. Kxf1
{[%clk 0:23:20]} 61... Kxf8 {[%clk 0:26:51]} 62. Kg2 {[%clk 0:23:29]} 62... Kg8
{[%clk 0:26:48]} 63. Kg3 {[%clk 0:23:45]} 63... Kg7 {[%clk 0:26:43]} 64. h4
{[%clk 0:23:39]} 64... Kf6 {[%clk 0:25:20]} 65. Kf4 {[%clk 0:23:21]} 65... h5
{[%clk 0:25:31]} 66. Ke3 {[%clk 0:23:16]} 66... Ke5 {[%clk 0:25:55]} 67. Kf3
{[%clk 0:23:38]} 67... f4 {[%clk 0:26:18]} 68. Kf2 {[%clk 0:23:32]} 68... Ke4
{[%clk 0:25:38]} 69. Ke2 {[%clk 0:23:45]} 69... f3+ {[%clk 0:24:03]} 70. Kf2
{[%clk 0:24:05]} 70... Kf4 {[%clk 0:23:57]} 71. Kg1 {[%clk 0:23:33]} 71... Kg3
{[%clk 0:24:05]} 72. Kh1 {[%clk 0:22:54]} 72... Kf2 {[%clk 0:24:29]} 73. Kh2
{[%clk 0:22:50]} 73... Ke2 {[%clk 0:24:55]} 74. Kh3 {[%clk 0:22:42]} 74... f2
{[%clk 0:25:17]} 0-1

[Variant "Standard"]
[Site "Europe Echecs"]

[Event "Championnat du monde jeunes U12F"]
[Date "2024.11.20"]
[White "Li, Yeeshuen"]
[Black "Liu, Jingyu"]
[WhiteElo "1546"]
[BlackElo "1680"]
[Round "6.34"]
[Result "0-1"]
[TimeControl "5400+30"]

1. e4 {[%clk 1:30:57]} 1... c6 {[%clk 1:30:56]} 2. d4 {[%clk 1:31:20]} 2... d5
{[%clk 1:31:21]} 3. exd5 {[%clk 1:31:35]} 3... cxd5 {[%clk 1:31:46]} 4. Bd3
{[%clk 1:31:54]} 4... Nc6 {[%clk 1:32:08]} 5. c3 {[%clk 1:32:16]} 5... Nf6
{[%clk 1:32:33]} 6. Bf4 {[%clk 1:31:50]} 6... g6 {[%clk 1:32:50]} 7. Nf3 {[%clk
1:31:58]} 7... Bf5 {[%clk 1:33:10]} 8. Bxf5 {[%clk 1:32:16]} 8... gxf5 {[%clk
1:33:34]} 9. Nbd2 {[%clk 1:32:08]} 9... e6 {[%clk 1:33:54]} 10. O-O {[%clk
1:31:44]} 10... Bd6 {[%clk 1:34:13]} 11. Ne5 {[%clk 1:31:37]} 11... Qc7 {[%clk
1:34:17]} 12. Re1 {[%clk 1:27:10]} 12... Ne4 {[%clk 1:28:52]} 13. f3 {[%clk
1:22:48]} 13... Nxd2 {[%clk 1:26:19]} 14. Qxd2 {[%clk 1:23:07]} 14... O-O {[%clk
1:25:59]} 15. Bh6 {[%clk 1:20:42]} 15... Kh8 {[%clk 1:10:49]} 16. Bxf8 {[%clk
1:18:45]} 16... Rxf8 {[%clk 1:11:08]} 17. f4 {[%clk 1:14:50]} 17... Ne7 {[%clk
1:09:32]} 18. g3 {[%clk 1:11:48]} 18... Ng8 {[%clk 1:09:26]} 19. Nf3 {[%clk
1:09:26]} 19... Nf6 {[%clk 1:09:42]} 20. Rac1 {[%clk 1:07:00]} 20... Ne4 {[%clk
1:09:38]} 21. Qd3 {[%clk 0:59:40]} 21... Rg8 {[%clk 1:03:32]} 22. Rc2 {[%clk
0:57:39]} 22... Bxf4 {[%clk 1:02:41]} 23. Rg2 {[%clk 0:54:50]} 23... Bd6 {[%clk
1:01:48]} 24. Rc1 {[%clk 0:51:51]} 24... Qa5 {[%clk 1:00:05]} 25. b3 {[%clk
0:49:13]} 25... b5 {[%clk 0:49:41]} 26. c4 {[%clk 0:44:57]} 26... Qa3 {[%clk
0:48:40]} 27. c5 {[%clk 0:42:48]} 27... Qxc1+ {[%clk 0:48:57]} 28. Qf1 {[%clk
0:41:50]} 28... Qe3+ {[%clk 0:47:45]} 29. Kh1 {[%clk 0:41:56]} 29... Bxg3 {[%clk
0:46:51]} 30. hxg3 {[%clk 0:40:52]} 30... Nxg3+ {[%clk 0:47:12]} 31. Rxg3 {[%clk
0:41:15]} 31... Rxg3 {[%clk 0:47:35]} 32. Ng1 {[%clk 0:38:44]} 32... Qh6+ {[%clk
0:47:46]} 33. Nh3 {[%clk 0:39:01]} 33... Rxh3+ {[%clk 0:48:07]} 34. Kg2 {[%clk
0:39:06]} 34... Rh2+ {[%clk 0:48:18]} 35. Kg3 {[%clk 0:39:26]} 35... Qh4+ {[%clk
0:48:28]} 36. Kf3 {[%clk 0:39:46]} 36... Rh3+ {[%clk 0:48:42]} 37. Kg2 {[%clk
0:40:05]} 37... Qg3# {[%clk 0:49:01]} 0-1

[Variant "Standard"]
[Site "Europe Echecs"]